[Event "Early-Titled-Tuesday-Blitz-September-05-2023"]
[Site "Chess.com"]
[Date "2023.09.05"]
[Round "4"]
[White "ChampStan"]
[Black "Iunusovnuriddin"]
[Result "0-1"]
[WhiteElo "2115"]
[BlackElo "2322"]
[TimeControl "180+1"]
[EndTime "8:38:51 PDT"]
[Termination "Iunusovnuriddin won by checkmate"]

1. e4 {[%clk 0:02:56.8]} 1... e5 {[%clk 0:02:54.2]} 2. Nf3 {[%clk 0:02:55]} 2...
Nc6 {[%clk 0:02:54]} 3. Bc4 {[%clk 0:02:53.1]} 3... Nf6 {[%clk 0:02:53.5]} 4.
Ng5 {[%clk 0:02:51.3]} 4... d5 {[%clk 0:02:53.2]} 5. exd5 {[%clk 0:02:47.3]}
5... Na5 {[%clk 0:02:53.1]} 6. Bb5+ {[%clk 0:02:47]} 6... c6 {[%clk 0:02:53.7]}
7. dxc6 {[%clk 0:02:45.7]} 7... bxc6 {[%clk 0:02:54]} 8. Bd3 {[%clk 0:02:44]}
8... Nd5 {[%clk 0:02:53.8]} 9. Ne4 {[%clk 0:02:42.5]} 9... Nf4 {[%clk
0:02:52.4]} 10. Qf3 {[%clk 0:02:42.7]} 10... f5 {[%clk 0:02:03.6]} 11. Ng3
{[%clk 0:02:28.6]} 11... Bc5 {[%clk 0:01:58.5]} 12. Bxf5 {[%clk 0:02:24.3]}
12... Bxf5 {[%clk 0:01:57.3]} 13. Nxf5 {[%clk 0:02:25.2]} 13... O-O {[%clk
0:01:57.9]} 14. Qe4 {[%clk 0:02:10.9]} 14... Nxg2+ {[%clk 0:01:57.3]} 15. Qxg2
{[%clk 0:02:09.5]} 15... Rxf5 {[%clk 0:01:56.9]} 16. f3 {[%clk 0:02:07.8]} 16...
Qh4+ {[%clk 0:01:25.7]} 17. Ke2 {[%clk 0:02:04.4]} 17... Raf8 {[%clk 0:01:20.9]}
18. Rf1 {[%clk 0:01:59.4]} 18... Qc4+ {[%clk 0:01:15.7]} 19. Kd1 {[%clk
0:01:57.6]} 19... Rg5 {[%clk 0:01:14.7]} 20. Qh1 {[%clk 0:01:46.2]} 20... e4
{[%clk 0:01:11.8]} 21. f4 {[%clk 0:01:41.2]} 21... Rh5 {[%clk 0:01:04.6]} 22. b3
{[%clk 0:01:35.6]} 22... Qd4 {[%clk 0:00:54.7]} 23. Nc3 {[%clk 0:01:20]} 23...
e3 {[%clk 0:00:37.2]} 24. Qf3 {[%clk 0:01:02.1]} 24... Rxh2 {[%clk 0:00:21.1]}
25. Qxe3 {[%clk 0:00:52.5]} 25... Qxe3 {[%clk 0:00:20.2]} 26. dxe3 {[%clk
0:00:53.4]} 26... Rd8+ {[%clk 0:00:20.6]} 27. Ke1 {[%clk 0:00:53]} 27... Bb4
{[%clk 0:00:20.9]} 28. Bb2 {[%clk 0:00:41.1]} 28... Rxc2 {[%clk 0:00:21]} 29.
Rd1 {[%clk 0:00:36.7]} 29... Rxd1+ {[%clk 0:00:19.1]} 30. Kxd1 {[%clk
0:00:35.5]} 30... Rxb2 {[%clk 0:00:19.4]} 31. Ne2 {[%clk 0:00:20.8]} 31... Rxa2
{[%clk 0:00:19.3]} 32. Nc1 {[%clk 0:00:20.4]} 32... Rd2+ {[%clk 0:00:17.7]} 33.
Ke1 {[%clk 0:00:19.9]} 33... Rb2+ {[%clk 0:00:11.5]} 34. Kd1 {[%clk 0:00:18.9]}
34... Nxb3 {[%clk 0:00:12.4]} 35. Nxb3 {[%clk 0:00:18.4]} 35... Rxb3 {[%clk
0:00:12.9]} 36. Kc2 {[%clk 0:00:18.3]} 36... Rc3+ {[%clk 0:00:12.4]} 37. Kb2
{[%clk 0:00:17.9]} 37... Rxe3 {[%clk 0:00:12.8]} 38. Ra1 {[%clk 0:00:18.2]}
38... a5 {[%clk 0:00:13.1]} 39. Kc2 {[%clk 0:00:18]} 39... Re2+ {[%clk
0:00:12.5]} 40. Kd3 {[%clk 0:00:17.7]} 40... Rd2+ {[%clk 0:00:12.9]} 41. Ke4
{[%clk 0:00:18.1]} 41... c5 {[%clk 0:00:12.5]} 42. Rf1 {[%clk 0:00:18.2]} 42...
c4 {[%clk 0:00:13]} 43. Rc1 {[%clk 0:00:18.7]} 43... c3 {[%clk 0:00:13.1]} 44.
Ke3 {[%clk 0:00:19.2]} 44... c2 {[%clk 0:00:12.3]} 45. Kf3 {[%clk 0:00:18.7]}
45... a4 {[%clk 0:00:11.9]} 46. Ke3 {[%clk 0:00:18.2]} 46... Rh2 {[%clk
0:00:12.6]} 47. Ra1 {[%clk 0:00:17.8]} 47... Ba3 {[%clk 0:00:12.1]} 48. Kd3
{[%clk 0:00:18.1]} 48... c1=Q {[%clk 0:00:12.3]} 49. Rxc1 {[%clk 0:00:18.2]}
49... Bxc1 {[%clk 0:00:13.2]} 50. Ke4 {[%clk 0:00:19.1]} 50... Kf7 {[%clk
0:00:13.9]} 51. Kf5 {[%clk 0:00:20]} 51... a3 {[%clk 0:00:12.6]} 52. Kg5 {[%clk
0:00:20.9]} 52... a2 {[%clk 0:00:13.5]} 53. Kf5 {[%clk 0:00:21.8]} 53... a1=Q
{[%clk 0:00:14]} 54. Kg5 {[%clk 0:00:22.7]} 54... Qf6+ {[%clk 0:00:13.5]} 55.
Kg4 {[%clk 0:00:22.8]} 55... Rh4+ {[%clk 0:00:13.8]} 56. Kf3 {[%clk 0:00:22]}
56... Qxf4+ {[%clk 0:00:13]} 57. Ke2 {[%clk 0:00:21.5]} 57... Qe3+ {[%clk
0:00:12.6]} 58. Kf1 {[%clk 0:00:17.9]} 58... Rh1+ {[%clk 0:00:07.4]} 59. Kg2
{[%clk 0:00:17.8]} 59... Qh3+ {[%clk 0:00:07.4]} 60. Kf2 {[%clk 0:00:17.6]}
60... Rf1+ {[%clk 0:00:08]} 61. Ke2 {[%clk 0:00:17.6]} 61... Qf3# {[%clk
0:00:08.6]} 0-1

[Event "Early-Titled-Tuesday-Blitz-September-05-2023"]
[Site "Chess.com"]
[Date "2023.09.05"]
[Round "4"]
[White "shimastream"]
[Black "JeRoma71"]
[Result "0-1"]
[WhiteElo "2953"]
[BlackElo "2828"]
[TimeControl "180+1"]
[EndTime "8:38:55 PDT"]
[Termination "JeRoma71 won on time"]

1. d4 {[%clk 0:03:00.9]} 1... g6 {[%clk 0:02:59.4]} 2. Nf3 {[%clk 0:02:54.4]}
2... Bg7 {[%clk 0:02:58.9]} 3. e4 {[%clk 0:02:50.7]} 3... c6 {[%clk 0:02:57.8]}
4. h3 {[%clk 0:02:47.1]} 4... d5 {[%clk 0:02:57.4]} 5. exd5 {[%clk 0:02:46.3]}
5... cxd5 {[%clk 0:02:57.9]} 6. c3 {[%clk 0:02:38.1]} 6... Nc6 {[%clk
0:02:56.4]} 7. Bf4 {[%clk 0:02:38.1]} 7... Nf6 {[%clk 0:02:54.6]} 8. Nbd2 {[%clk
0:02:38.2]} 8... O-O {[%clk 0:02:54.1]} 9. Be2 {[%clk 0:02:35.9]} 9... Nh5
{[%clk 0:02:31.2]} 10. Bh2 {[%clk 0:02:35.5]} 10... Bh6 {[%clk 0:02:30.6]} 11.
O-O {[%clk 0:02:33.7]} 11... Nf4 {[%clk 0:02:29.5]} 12. Bb5 {[%clk 0:02:31.8]}
12... Bd7 {[%clk 0:02:20.4]} 13. Re1 {[%clk 0:02:29.5]} 13... a6 {[%clk
0:02:19.1]} 14. Bf1 {[%clk 0:02:26.8]} 14... Rc8 {[%clk 0:02:13.3]} 15. Nb3
{[%clk 0:02:23.9]} 15... Ne6 {[%clk 0:01:53.8]} 16. a4 {[%clk 0:02:19.6]} 16...
Na5 {[%clk 0:01:43.8]} 17. Ne5 {[%clk 0:02:17]} 17... Nc4 {[%clk 0:01:40.2]} 18.
Nxc4 {[%clk 0:01:49.3]} 18... dxc4 {[%clk 0:01:40.9]} 19. Nd2 {[%clk 0:01:50.1]}
19... b5 {[%clk 0:01:32.4]} 20. axb5 {[%clk 0:01:50]} 20... axb5 {[%clk
0:01:28.4]} 21. Nf3 {[%clk 0:01:50.1]} 21... Bc6 {[%clk 0:01:23.1]} 22. Ne5
{[%clk 0:01:49.6]} 22... Bd5 {[%clk 0:01:22.7]} 23. Ng4 {[%clk 0:01:49.5]} 23...
Bg7 {[%clk 0:01:20.9]} 24. Ne3 {[%clk 0:01:49.5]} 24... Nc7 {[%clk 0:01:18.4]}
25. Ra7 {[%clk 0:01:43.1]} 25... e6 {[%clk 0:01:18.3]} 26. Be2 {[%clk
0:01:35.6]} 26... Bc6 {[%clk 0:01:15.7]} 27. Bf3 {[%clk 0:01:31.2]} 27... Nd5
{[%clk 0:01:15.9]} 28. Bxd5 {[%clk 0:01:23.5]} 28... Bxd5 {[%clk 0:01:16.5]} 29.
Be5 {[%clk 0:01:20.1]} 29... Ra8 {[%clk 0:01:14]} 30. Qa1 {[%clk 0:01:16.5]}
30... Rxa7 {[%clk 0:01:10.7]} 31. Qxa7 {[%clk 0:01:17.4]} 31... Qa8 {[%clk
0:01:09.8]} 32. Ra1 {[%clk 0:01:13.3]} 32... Qc6 {[%clk 0:00:49.7]} 33. Bxg7
{[%clk 0:01:08.9]} 33... Kxg7 {[%clk 0:00:49.8]} 34. Qe7 {[%clk 0:01:08.3]}
34... Qe8 {[%clk 0:00:32.2]} 35. Qg5 {[%clk 0:01:05.3]} 35... Qd8 {[%clk
0:00:32.8]} 36. Qg3 {[%clk 0:01:05]} 36... h5 {[%clk 0:00:28.4]} 37. Ra7 {[%clk
0:01:00]} 37... Qf6 {[%clk 0:00:28.3]} 38. h4 {[%clk 0:00:45.8]} 38... b4 {[%clk
0:00:26.3]} 39. Ra6 {[%clk 0:00:39.8]} 39... Rd8 {[%clk 0:00:19]} 40. Rb6 {[%clk
0:00:29.5]} 40... b3 {[%clk 0:00:13.8]} 41. Ra6 {[%clk 0:00:28.8]} 41... Qe7
{[%clk 0:00:10.3]} 42. Qe5+ {[%clk 0:00:28.2]} 42... Qf6 {[%clk 0:00:10.7]} 43.
Qxf6+ {[%clk 0:00:27.2]} 43... Kxf6 {[%clk 0:00:11.6]} 44. f4 {[%clk 0:00:25.6]}
44... Ke7 {[%clk 0:00:09.9]} 45. Kf2 {[%clk 0:00:23.1]} 45... Rc8 {[%clk
0:00:09.5]} 46. Ra7+ {[%clk 0:00:22.2]} 46... Kf6 {[%clk 0:00:09.5]} 47. Rd7
{[%clk 0:00:17.4]} 47... Ra8 {[%clk 0:00:08.2]} 48. Rd6 {[%clk 0:00:03.7]} 48...
Ke7 {[%clk 0:00:07.9]} 49. Rb6 {[%clk 0:00:03.4]} 49... Ra2 {[%clk 0:00:07.4]}
50. f5 {[%clk 0:00:03.7]} 50... gxf5 {[%clk 0:00:06.7]} 51. Kg3 {[%clk
0:00:03.9]} 51... Rxb2 {[%clk 0:00:06.2]} 52. Kf4 {[%clk 0:00:04.5]} 52... Rf2+
{[%clk 0:00:05.6]} 53. Kg3 {[%clk 0:00:04.9]} 53... Re2 {[%clk 0:00:05.9]} 54.
Kf4 {[%clk 0:00:04.2]} 54... b2 {[%clk 0:00:05.8]} 55. Rb4 {[%clk 0:00:02.9]}
55... Be4 {[%clk 0:00:05.6]} 56. d5 {[%clk 0:00:01.6]} 56... Rxe3 {[%clk
0:00:05.1]} 0-1

[Event "Early-Titled-Tuesday-Blitz-September-05-2023"]
[Site "Chess.com"]
[Date "2023.09.05"]
[Round "4"]
[White "Vladimir_Zakhartsov"]
[Black "Thecourseoisildur"]
[Result "1-0"]
[WhiteElo "2885"]
[BlackElo "2588"]
[TimeControl "180+1"]
[EndTime "8:38:59 PDT"]
[Termination "Vladimir_Zakhartsov won on time"]

1. c3 {[%clk 0:02:54.1]} 1... Nf6 {[%clk 0:02:58.7]} 2. g3 {[%clk 0:02:50.1]}
2... g6 {[%clk 0:02:56.1]} 3. Bg2 {[%clk 0:02:50.3]} 3... Bg7 {[%clk 0:02:57]}
4. d4 {[%clk 0:02:50.3]} 4... d5 {[%clk 0:02:56.2]} 5. Nf3 {[%clk 0:02:49.2]}
5... O-O {[%clk 0:02:55.8]} 6. O-O {[%clk 0:02:49.8]} 6... b6 {[%clk 0:02:52.9]}
7. c4 {[%clk 0:02:49.6]} 7... Bb7 {[%clk 0:02:52.6]} 8. Ne5 {[%clk 0:02:48.7]}
8... Qc8 {[%clk 0:02:52.9]} 9. cxd5 {[%clk 0:02:46.9]} 9... Bxd5 {[%clk
0:02:52.6]} 10. Nc3 {[%clk 0:02:45.9]} 10... Bxg2 {[%clk 0:02:52.4]} 11. Kxg2
{[%clk 0:02:46.8]} 11... Qb7+ {[%clk 0:02:36.9]} 12. f3 {[%clk 0:02:44.1]} 12...
Nbd7 {[%clk 0:02:36.1]} 13. Nd3 {[%clk 0:02:43.1]} 13... c5 {[%clk 0:02:30.5]}
14. dxc5 {[%clk 0:02:41.4]} 14... Nxc5 {[%clk 0:02:30.6]} 15. Nxc5 {[%clk
0:02:41.5]} 15... bxc5 {[%clk 0:02:31.5]} 16. e4 {[%clk 0:02:41.9]} 16... Rfd8
{[%clk 0:02:23.8]} 17. Qe2 {[%clk 0:02:42]} 17... Rab8 {[%clk 0:02:22.3]} 18.
Rb1 {[%clk 0:02:40.6]} 18... Nd7 {[%clk 0:02:09.9]} 19. Bf4 {[%clk 0:02:34]}
19... Ne5 {[%clk 0:01:58.8]} 20. Nd5 {[%clk 0:02:28.4]} 20... e6 {[%clk
0:01:53.7]} 21. Ne3 {[%clk 0:02:27.5]} 21... Qb5 {[%clk 0:01:36.1]} 22. Qxb5
{[%clk 0:02:15.4]} 22... Rxb5 {[%clk 0:01:37]} 23. Bxe5 {[%clk 0:02:15.9]} 23...
Bxe5 {[%clk 0:01:35.6]} 24. Nc4 {[%clk 0:02:16.1]} 24... Bd4 {[%clk 0:01:32.3]}
25. b3 {[%clk 0:02:06.8]} 25... Rdb8 {[%clk 0:01:27.9]} 26. Rbc1 {[%clk
0:01:43.8]} 26... a5 {[%clk 0:01:18.3]} 27. Rc2 {[%clk 0:01:43.3]} 27... Ra8
{[%clk 0:01:12.5]} 28. e5 {[%clk 0:01:20.3]} 28... a4 {[%clk 0:01:09.6]} 29.
bxa4 {[%clk 0:01:20.2]} 29... Rxa4 {[%clk 0:01:10.5]} 30. f4 {[%clk 0:01:20.8]}
30... Rb8 {[%clk 0:00:54.5]} 31. Rd1 {[%clk 0:01:20.7]} 31... Rba8 {[%clk
0:00:44.4]} 32. Rdd2 {[%clk 0:01:20.7]} 32... Rb8 {[%clk 0:00:35.6]} 33. Nd6
{[%clk 0:01:10.1]} 33... Rb1 {[%clk 0:00:27.9]} 34. Kh3 {[%clk 0:01:04.1]} 34...
Ra1 {[%clk 0:00:20.6]} 35. Kg4 {[%clk 0:00:58.9]} 35... Kg7 {[%clk 0:00:20.9]}
36. Ne8+ {[%clk 0:00:55.7]} 36... Kf8 {[%clk 0:00:20.8]} 37. Nf6 {[%clk
0:00:53.9]} 37... Kg7 {[%clk 0:00:20.7]} 38. Nd7 {[%clk 0:00:45.3]} 38... h6
{[%clk 0:00:18.1]} 39. h4 {[%clk 0:00:32.4]} 39... h5+ {[%clk 0:00:16]} 40. Kh3
{[%clk 0:00:21.5]} 40... Ra3 {[%clk 0:00:13.6]} 41. Nf6 {[%clk 0:00:17.1]} 41...
Rf1 {[%clk 0:00:07.4]} 42. Ne4 {[%clk 0:00:14.1]} 42... Rxf4 {[%clk 0:00:03.9]}
43. Ng5 {[%clk 0:00:08.8]} 43... Rf1 {[%clk 0:00:03.4]} 44. Kh2 {[%clk 0:00:06]}
44... Bxe5 {[%clk 0:00:02.8]} 45. Rd7 {[%clk 0:00:05.4]} 45... Bxg3+ {[%clk
0:00:02.6]} 46. Kg2 {[%clk 0:00:05.6]} 46... Rf5 {[%clk 0:00:02]} 47. Nxe6+
{[%clk 0:00:05.7]} 47... Kh6 {[%clk 0:00:01.7]} 48. Ng5 {[%clk 0:00:05.7]} 48...
Bxh4 {[%clk 0:00:02.1]} 49. Nxf7+ {[%clk 0:00:06.2]} 49... Kg7 {[%clk
0:00:01.7]} 50. Nd6+ {[%clk 0:00:06.8]} 50... Kf6 {[%clk 0:00:01.6]} 51. Nxf5
{[%clk 0:00:07.5]} 51... Kxf5 {[%clk 0:00:01.5]} 52. Rd5+ {[%clk 0:00:07.2]}
52... Ke6 {[%clk 0:00:01.7]} 53. Rdxc5 {[%clk 0:00:06.8]} 53... Bf6 {[%clk
0:00:01.8]} 54. Rc6+ {[%clk 0:00:06.7]} 54... Kf5 {[%clk 0:00:01.9]} 55. Rf2+
{[%clk 0:00:06.7]} 55... Kg5 {[%clk 0:00:01.7]} 56. Rcxf6 {[%clk 0:00:06.9]}
56... h4 {[%clk 0:00:01.1]} 57. R6f3 {[%clk 0:00:06.9]} 57... Ra5 {[%clk
0:00:01.4]} 58. Kh2 {[%clk 0:00:07.2]} 58... Kh5 {[%clk 0:00:01.5]} 59. Rf8
{[%clk 0:00:06.6]} 59... Kg5 {[%clk 0:00:01.5]} 60. Rg2+ {[%clk 0:00:05.9]}
60... Kh6 {[%clk 0:00:02]} 61. Rg8 {[%clk 0:00:06]} 61... g5 {[%clk 0:00:02.1]}
62. a4 {[%clk 0:00:05.8]} 62... Rxa4 {[%clk 0:00:01.4]} 63. R8xg5 {[%clk
0:00:05.9]} 1-0

[Event "Early-Titled-Tuesday-Blitz-September-05-2023"]
[Site "Chess.com"]
[Date "2023.09.05"]
[Round "4"]
[White "blitzking1729"]
[Black "Shield12"]
[Result "0-1"]
[WhiteElo "2752"]
[BlackElo "2958"]
[TimeControl "180+1"]
[EndTime "8:39:03 PDT"]
[Termination "Shield12 won by resignation"]

1. d4 {[%clk 0:02:55.8]} 1... Nf6 {[%clk 0:02:59.9]} 2. Bg5 {[%clk 0:02:54.5]}
2... d5 {[%clk 0:02:59.1]} 3. Nd2 {[%clk 0:02:54.1]} 3... c5 {[%clk 0:02:58.3]}
4. e3 {[%clk 0:02:53.5]} 4... Nc6 {[%clk 0:02:54.4]} 5. Ngf3 {[%clk 0:02:53.2]}
5... cxd4 {[%clk 0:02:51.4]} 6. exd4 {[%clk 0:02:51.3]} 6... h6 {[%clk
0:02:51.3]} 7. Bh4 {[%clk 0:02:48.4]} 7... Bf5 {[%clk 0:02:37.7]} 8. c3 {[%clk
0:02:48.1]} 8... e6 {[%clk 0:02:37.3]} 9. Be2 {[%clk 0:02:47.4]} 9... Be7 {[%clk
0:02:33.6]} 10. O-O {[%clk 0:02:47.3]} 10... O-O {[%clk 0:02:33.9]} 11. Re1
{[%clk 0:02:47.3]} 11... a6 {[%clk 0:02:31.6]} 12. Bf1 {[%clk 0:02:45.8]} 12...
b5 {[%clk 0:02:31.4]} 13. Ne5 {[%clk 0:02:45.2]} 13... Nxe5 {[%clk 0:02:29]} 14.
dxe5 {[%clk 0:02:44.7]} 14... Nd7 {[%clk 0:02:29]} 15. Bxe7 {[%clk 0:02:44.7]}
15... Qxe7 {[%clk 0:02:29.9]} 16. Nf3 {[%clk 0:02:43.9]} 16... Rfc8 {[%clk
0:02:26.4]} 17. Nd4 {[%clk 0:02:43.7]} 17... Bg6 {[%clk 0:02:26.5]} 18. f4
{[%clk 0:02:34.7]} 18... b4 {[%clk 0:02:25.6]} 19. Re3 {[%clk 0:02:26.9]} 19...
bxc3 {[%clk 0:02:24.4]} 20. bxc3 {[%clk 0:02:27.8]} 20... Rab8 {[%clk
0:02:23.4]} 21. Bxa6 {[%clk 0:02:26.3]} 21... Rc7 {[%clk 0:02:22.7]} 22. Bb5
{[%clk 0:02:14.5]} 22... Qc5 {[%clk 0:02:13.9]} 23. a4 {[%clk 0:02:11]} 23...
Nb6 {[%clk 0:02:11.7]} 24. Qe2 {[%clk 0:01:34.9]} 24... Be4 {[%clk 0:02:01.1]}
25. Rg3 {[%clk 0:01:28.8]} 25... Kh7 {[%clk 0:01:40.5]} 26. h4 {[%clk 0:01:27]}
26... Nc8 {[%clk 0:01:36.7]} 27. h5 {[%clk 0:01:22.5]} 27... Ne7 {[%clk
0:01:36.1]} 28. Kh2 {[%clk 0:01:12.6]} 28... Nf5 {[%clk 0:01:33.5]} 29. Nxf5
{[%clk 0:01:11.1]} 29... exf5 {[%clk 0:01:33.7]} 30. Qe3 {[%clk 0:01:06.4]}
30... Qe7 {[%clk 0:01:32]} 31. Rh3 {[%clk 0:01:01]} 31... Rbc8 {[%clk
0:01:30.6]} 32. Qd4 {[%clk 0:01:00.9]} 32... Rc5 {[%clk 0:01:27.7]} 33. Bf1
{[%clk 0:00:55.6]} 33... Qc7 {[%clk 0:01:23]} 34. Ra3 {[%clk 0:00:52.8]} 34...
Ra8 {[%clk 0:01:14.1]} 35. Rb3 {[%clk 0:00:47.3]} 35... Qc6 {[%clk 0:01:09.5]}
36. Rb5 {[%clk 0:00:45.1]} 36... Rxb5 {[%clk 0:01:07.4]} 37. axb5 {[%clk
0:00:33.6]} 37... Qc7 {[%clk 0:01:08.3]} 38. Rg3 {[%clk 0:00:30.7]} 38... Ra2
{[%clk 0:01:03.8]} 39. b6 {[%clk 0:00:27.4]} 39... Qb7 {[%clk 0:01:02.7]} 40. e6
{[%clk 0:00:25.1]} 40... fxe6 {[%clk 0:00:54.9]} 41. Qc5 {[%clk 0:00:20.9]}
41... Ra8 {[%clk 0:00:25.4]} 42. Bb5 {[%clk 0:00:20.2]} 42... Qf7 {[%clk
0:00:21.2]} 43. Be2 {[%clk 0:00:15.7]} 43... Rb8 {[%clk 0:00:20]} 44. Qd6 {[%clk
0:00:12.8]} 44... Rb7 {[%clk 0:00:19.1]} 45. Kg1 {[%clk 0:00:10.4]} 45... d4
{[%clk 0:00:18.1]} 46. cxd4 {[%clk 0:00:08.6]} 46... Rd7 {[%clk 0:00:17.7]} 47.
Qe5 {[%clk 0:00:08.6]} 47... Rd5 {[%clk 0:00:16.4]} 48. Qc7 {[%clk 0:00:09.1]}
48... Rd7 {[%clk 0:00:15.6]} 49. Qc5 {[%clk 0:00:07.5]} 49... Rd5 {[%clk
0:00:15.3]} 50. Qb4 {[%clk 0:00:06.9]} 50... Rd7 {[%clk 0:00:12]} 51. Bf3 {[%clk
0:00:07.2]} 51... Bxf3 {[%clk 0:00:10.5]} 52. Rxf3 {[%clk 0:00:08.1]} 52... Rb7
{[%clk 0:00:09.2]} 53. Rc3 {[%clk 0:00:07.4]} 53... Qxh5 {[%clk 0:00:08.6]} 54.
Rc7 {[%clk 0:00:06.2]} 54... Qd1+ {[%clk 0:00:08.6]} 55. Kf2 {[%clk 0:00:06.2]}
55... Rxc7 {[%clk 0:00:08.7]} 56. bxc7 {[%clk 0:00:05.7]} 56... Qc2+ {[%clk
0:00:09.3]} 57. Ke3 {[%clk 0:00:05.3]} 57... Qxc7 {[%clk 0:00:10.2]} 58. Qf8
{[%clk 0:00:05.2]} 58... Qc6 {[%clk 0:00:09.4]} 59. Qe7 {[%clk 0:00:03.3]} 59...
Qe4+ {[%clk 0:00:09.4]} 0-1

[Event "Early-Titled-Tuesday-Blitz-September-05-2023"]
[Site "Chess.com"]
[Date "2023.09.05"]
[Round "4"]
[White "thedjoker98"]
[Black "ViIIagra"]
[Result "1/2-1/2"]
[WhiteElo "2618"]
[BlackElo "2935"]
[TimeControl "180+1"]
[EndTime "8:39:03 PDT"]
[Termination "Game drawn by repetition"]

1. d4 {[%clk 0:03:00.9]} 1... d6 {[%clk 0:02:59.9]} 2. c4 {[%clk 0:02:59.6]}
2... g6 {[%clk 0:03:00]} 3. e4 {[%clk 0:02:59.4]} 3... Bg7 {[%clk 0:03:00.6]} 4.
Nc3 {[%clk 0:02:59.3]} 4... e5 {[%clk 0:03:00.9]} 5. Nge2 {[%clk 0:02:56.5]}
5... Nf6 {[%clk 0:02:52]} 6. f3 {[%clk 0:02:56.1]} 6... O-O {[%clk 0:02:48.4]}
7. Be3 {[%clk 0:02:56.3]} 7... c6 {[%clk 0:02:44.1]} 8. Qd2 {[%clk 0:02:56.2]}
8... exd4 {[%clk 0:02:35.6]} 9. Nxd4 {[%clk 0:02:57.1]} 9... d5 {[%clk
0:02:36.3]} 10. cxd5 {[%clk 0:02:57.1]} 10... cxd5 {[%clk 0:02:37.2]} 11. e5
{[%clk 0:02:57.7]} 11... Nfd7 {[%clk 0:02:37.7]} 12. f4 {[%clk 0:02:57]} 12...
Nc6 {[%clk 0:02:38.4]} 13. Be2 {[%clk 0:02:54.1]} 13... Nb6 {[%clk 0:02:29.4]}
14. O-O {[%clk 0:02:51.7]} 14... f6 {[%clk 0:02:22.4]} 15. exf6 {[%clk
0:02:47.5]} 15... Qxf6 {[%clk 0:02:23.3]} 16. Rad1 {[%clk 0:02:44.9]} 16... Re8
{[%clk 0:02:02.1]} 17. Bf2 {[%clk 0:02:43.4]} 17... Bd7 {[%clk 0:01:51.1]} 18.
Rfe1 {[%clk 0:02:27.7]} 18... Rad8 {[%clk 0:01:48.1]} 19. b3 {[%clk 0:02:27.2]}
19... Kh8 {[%clk 0:01:29]} 20. Bf3 {[%clk 0:02:02.5]} 20... Rxe1+ {[%clk
0:01:26.2]} 21. Qxe1 {[%clk 0:02:01]} 21... Qxf4 {[%clk 0:01:11.1]} 22. Nde2
{[%clk 0:01:41.8]} 22... Qf6 {[%clk 0:00:40.2]} 23. Nxd5 {[%clk 0:01:40]} 23...
Nxd5 {[%clk 0:00:40.1]} 24. Bxd5 {[%clk 0:01:40]} 24... Re8 {[%clk 0:00:40.1]}
25. Qd2 {[%clk 0:01:34.9]} 25... Bg4 {[%clk 0:00:39.9]} 26. Re1 {[%clk
0:01:24.5]} 26... Qd6 {[%clk 0:00:40.1]} 27. Nc3 {[%clk 0:01:13.4]} 27... Rd8
{[%clk 0:00:32]} 28. Qc1 {[%clk 0:01:02.5]} 28... Qb4 {[%clk 0:00:23.8]} 29.
Bxc6 {[%clk 0:00:31.3]} 29... bxc6 {[%clk 0:00:24.7]} 30. Ne4 {[%clk 0:00:28.5]}
30... Be6 {[%clk 0:00:15.4]} 31. Ng5 {[%clk 0:00:26.4]} 31... Bd5 {[%clk
0:00:15.4]} 32. Bxa7 {[%clk 0:00:21.6]} 32... Qg4 {[%clk 0:00:15.2]} 33. Qd2
{[%clk 0:00:14.2]} 33... Kg8 {[%clk 0:00:15.8]} 34. h3 {[%clk 0:00:13.7]} 34...
Qd7 {[%clk 0:00:13.7]} 35. Bf2 {[%clk 0:00:11.8]} 35... Bh6 {[%clk 0:00:12.9]}
36. Be3 {[%clk 0:00:12.3]} 36... Re8 {[%clk 0:00:12.9]} 37. Nf3 {[%clk
0:00:11.3]} 37... Bf8 {[%clk 0:00:07.3]} 38. Bf2 {[%clk 0:00:10.1]} 38... Rxe1+
{[%clk 0:00:06.4]} 39. Nxe1 {[%clk 0:00:10.7]} 39... Qf5 {[%clk 0:00:05.9]} 40.
Bd4 {[%clk 0:00:10.4]} 40... Qe4 {[%clk 0:00:06.3]} 41. Qe3 {[%clk 0:00:10.1]}
41... Qf5 {[%clk 0:00:03.5]} 42. Qe5 {[%clk 0:00:09.9]} 42... Qxe5 {[%clk
0:00:02.7]} 43. Bxe5 {[%clk 0:00:10.8]} 43... Kf7 {[%clk 0:00:03.6]} 44. Nd3
{[%clk 0:00:10.7]} 44... Ke6 {[%clk 0:00:03.7]} 45. Bc3 {[%clk 0:00:10.9]} 45...
Kf5 {[%clk 0:00:03.7]} 46. Kf2 {[%clk 0:00:10.9]} 46... Ke4 {[%clk 0:00:04.2]}
47. Ke2 {[%clk 0:00:10.9]} 47... Kf5 {[%clk 0:00:05]} 48. g4+ {[%clk 0:00:10.8]}
48... Ke4 {[%clk 0:00:04.8]} 49. Bd2 {[%clk 0:00:09.6]} 49... h5 {[%clk
0:00:04.7]} 50. Nf2+ {[%clk 0:00:09.7]} 50... Ke5 {[%clk 0:00:04.8]} 51. gxh5
{[%clk 0:00:09.9]} 51... gxh5 {[%clk 0:00:05.7]} 52. Bc3+ {[%clk 0:00:09.3]}
52... Kf4 {[%clk 0:00:06.4]} 53. Nd3+ {[%clk 0:00:09.3]} 53... Kg3 {[%clk
0:00:06.7]} 54. a4 {[%clk 0:00:09.8]} 54... Bxb3 {[%clk 0:00:06.4]} 55. a5
{[%clk 0:00:09.8]} 55... Bc4 {[%clk 0:00:07.1]} 56. Ke3 {[%clk 0:00:09.3]} 56...
Kxh3 {[%clk 0:00:06.2]} 57. Ne5 {[%clk 0:00:09.4]} 57... Bb5 {[%clk 0:00:06.2]}
58. a6 {[%clk 0:00:08.5]} 58... Bxa6 {[%clk 0:00:06.1]} 59. Nxc6 {[%clk
0:00:09.2]} 59... Kg2 {[%clk 0:00:06.1]} 60. Ne5 {[%clk 0:00:09.2]} 60... h4
{[%clk 0:00:06.2]} 61. Ng6 {[%clk 0:00:09.6]} 61... Bh6+ {[%clk 0:00:06.3]} 62.
Ke4 {[%clk 0:00:08.4]} 62... h3 {[%clk 0:00:07.2]} 63. Be5 {[%clk 0:00:07]}
63... Bg5 {[%clk 0:00:05.6]} 64. Nf4+ {[%clk 0:00:06.7]} 64... Kg3 {[%clk
0:00:02.9]} 65. Ne6+ {[%clk 0:00:06.9]} 65... Kg4 {[%clk 0:00:02.4]} 66. Nxg5
{[%clk 0:00:07.5]} 66... Kxg5 {[%clk 0:00:03]} 67. Ke3 {[%clk 0:00:08.1]} 67...
Kg4 {[%clk 0:00:03.6]} 68. Bh2 {[%clk 0:00:08.7]} 68... Kh4 {[%clk 0:00:03.9]}
69. Kf2 {[%clk 0:00:09.6]} 69... Kg4 {[%clk 0:00:04.8]} 70. Bg3 {[%clk
0:00:10.1]} 70... Kh5 {[%clk 0:00:05.2]} 71. Bh2 {[%clk 0:00:11]} 71... Kg4
{[%clk 0:00:06.1]} 72. Bg3 {[%clk 0:00:11.9]} 72... Kh5 {[%clk 0:00:06.8]} 73.
Bh2 {[%clk 0:00:12.8]} 73... Kg4 {[%clk 0:00:07.7]} 1/2-1/2